bitfinex-derivatives/quotes_ETHF0:USTF0_20251118
["timestamp","ask_amount","ask_price","bid_price","bid_amount"]
[1763504641658,0.2322,3123.3,3123.2,0.51896]
[1763504641852,0.2322,3123.3,3123.0,3.3547]
[1763504642048,0.2322,3123.3,3123.2,0.75787]
[1763504643159,0.75112,3123.5,3123.4,0.75783]
[1763504643555,0.2322,3123.1,3123.0,4.1126]
[1763504644054,0.75118,3123.1,3123.0,4.1126]
[1763504644258,0.2322,3123.1,3123.0,4.1126]
[1763504644458,0.75118,3123.1,3123.0,3.5936]
[1763504644663,0.75118,3123.1,3123.0,3.2078]
[1763504645357,0.75118,3123.1,3123.0,0.2389]
[1763504646263,0.75118,3123.1,3123.0,0.7579]
[1763504646865,0.75118,3123.1,3123.0,0.3858]
[1763504647162,0.51898,3123.1,3123.0,0.6659]
[1763504647349,0.51898,3123.1,3123.0,0.9048]
[1763504647549,0.75118,3123.1,3123.0,0.9048]
[1763504647755,0.75118,3123.1,3123.0,0.3858]
[1763504648250,0.7512,3123.0,3122.9,0.52187214]
[1763504648762,0.2322,3123.0,3122.9,0.76077214]
[1763504649855,0.7512,3123.0,3122.9,0.76077214]
[1763504651067,0.2322,3123.0,3122.9,0.76077214]
[1763504651364,0.51898,3123.1,3123.0,0.9048]
[1763504652960,0.75118,3123.1,3123.0,0.9048]
[1763504653768,0.7512,3123.0,3122.9,0.52186214]
[1763504654271,0.7512,3123.0,3122.9,0.76076214]
[1763504654575,0.7512,3123.0,3122.9,0.52186214]
[1763504655168,0.7512,3123.0,3122.9,0.76076214]
[1763504655370,0.7512,3123.0,3122.9,0.00285214]
[1763504655771,0.7512,3123.0,3122.9,0.24175214]
[1763504658378,0.891,3123.0,3122.9,0.00285214]
[1763504666380,1.66511134,3123.0,3122.9,0.00285214]
[1763504666886,0.891,3123.0,3122.9,0.00285214]
[1763504672887,4.0988,3123.0,3122.9,0.00285214]
[1763504673289,4.87009921,3123.0,3122.9,0.00285214]
[1763504675587,4.73029921,3123.0,3122.9,0.00285214]
[1763504675790,4.73029921,3123.0,3122.9,0.52187214]
[1763504677291,1.52249921,3123.0,3122.9,0.75317214]
[1763504677487,1.29029921,3123.0,3122.9,0.75317214]
[1763504677693,2.991,3123.3,3123.2,0.75027]
[1763504677889,4.53028092,3123.3,3123.2,0.75027]
[1763504679794,3.75875,3123.3,3123.2,0.75027]
[1763504682497,0.76775,3123.3,3123.2,0.75027]
[1763504686201,0.76775,3123.3,3123.2,0.51897]
[1763504686402,0.76775,3123.3,3123.2,0.75027]
[1763504689700,0.2488,3123.5,3123.4,0.75022]
[1763504690899,0.76772,3123.5,3123.4,0.75022]
[1763504691098,3.2078,3123.6,3123.1,0.75028]
[1763504691099,0.76778,3123.2,3123.1,0.75028]
[1763504692206,0.76778,3123.2,3123.1,0.51898]
[1763504692505,0.76775,3123.5,3123.4,0.75023]
[1763504692701,0.76775,3123.5,3123.4,0.2313]
[1763504692902,0.76778,3123.1,3123.0,0.0511]
[1763504693099,5.22953837,3123.1,3123.0,0.0511]
[1763504695798,6.00032646,3123.1,3123.0,0.0511]
[1763504696610,0.8569,3123.0,3122.9,0.00285214]
[1763504701109,0.7678,3123.0,3122.9,0.24825214]
[1763504701314,0.519,3123.0,3122.9,1.50221051]
[1763504701814,0.7596,3123.0,3122.9,0.24825214]
[1763504702420,3.5368,3123.0,3122.9,0.00285214]
[1763504702602,4.0558,3123.0,3122.9,0.00285214]
[1763504702808,4.8243947,3123.0,3122.9,0.00285214]
[1763504705208,7.8153947,3123.0,3122.9,0.00285214]
[1763504705812,0.75965,3122.7,3122.6,0.00480161]
[1763504706107,0.51913,3122.2,3122.1,3.2078]
[1763504706308,0.75973,3122.2,3122.1,3.2078]
[1763504706508,0.75983,3121.6,3121.5,0.1347]
[1763504706712,0.75973,3122.2,3122.1,0.2454]
[1763504706912,0.76245329,3122.2,3122.1,0.24915017]
[1763504708114,0.76245329,3122.2,3122.1,0.76830017]
[1763504709919,0.00272329,3122.2,3122.1,0.76830017]
[1763504711119,0.00272329,3122.2,3122.1,3.97610017]
[1763504712619,3.2078,3123.0,3122.5,0.65378]
[1763504713020,3.2078,3123.0,3122.7,0.2454]
[1763504713021,0.75965,3122.8,3122.7,0.2454]
[1763504716423,0.75965,3122.8,3122.7,0.76445]
[1763504717327,0.51905,3122.8,3122.7,0.76445]
[1763504717518,3.2078,3123.0,3122.5,0.1347]
[1763504717519,0.51902,3122.9,3122.8,0.51902]
[1763504717824,0.51902,3122.9,3122.8,0.76442]
[1763504721218,0.75962,3122.9,3122.8,0.2454]
[1763504721422,0.75962,3122.9,3122.8,0.76443]
[1763504722632,0.76417,3122.6,3122.5,3.86157]
[1763504722921,0.76417,3122.6,3122.5,4.10637]
[1763504723132,0.76417,3122.6,3122.5,0.1347]
[1763504723720,0.76417,3122.6,3122.5,0.65378]
[1763504724730,0.51907,3122.6,3122.5,0.89858]
[1763504725125,0.51903,3122.9,3122.5,0.1347]
[1763504725423,0.51903,3122.9,3122.8,0.76383]
[1763504725924,0.76413,3122.9,3122.8,0.76383]
[1763504726529,0.76413,3122.9,3122.8,0.2448]
[1763504728230,0.76413,3122.9,3122.8,0.76383]
[1763504728532,0.51903,3122.9,3122.8,0.76383]
[1763504729737,0.51903,3122.9,3122.8,0.2448]
[1763504730225,0.75293,3122.9,3122.8,0.2448]
[1763504731334,0.51903,3122.9,3122.8,0.2448]
[1763504731831,0.75293,3122.9,3122.8,0.2448]
[1763504732532,0.2339,3122.9,3122.8,0.2448]
[1763504732732,0.75294,3122.9,3122.8,0.2448]
[1763504735140,0.51904,3122.9,3122.8,0.2448]
[1763504735827,0.51904,3122.9,3122.8,0.76383]
[1763504736833,3.72681,3123.0,3122.9,0.76512]
[1763504737543,3.96071,3123.0,3122.9,0.76512]
[1763504738138,4.50015672,3123.0,3122.9,0.76512]
[1763504738640,4.73405672,3123.0,3122.9,0.76512]
[1763504740532,4.50015672,3123.0,3122.9,0.76512]
[1763504740732,3.72681,3123.0,3122.9,0.76512]
[1763504741132,4.73456891,3123.0,3122.9,0.76512]
[1763504742233,4.73461493,3123.0,3122.9,0.76512]
[1763504742533,4.3500762,3123.0,3122.9,0.76512]
[1763504744242,0.75298,3122.5,3122.4,3.97297]
[1763504744450,0.51906,3122.7,3122.6,0.76514]
[1763504745036,0.51903,3122.8,3122.7,0.51902]
[1763504745241,0.51903,3122.8,3122.7,0.76512]
[1763504746750,2.82326127,3123.0,3122.8,0.51902]
[1763504746751,0.51902,3122.9,3122.8,0.51902]
[1763504746951,0.51902,3122.9,3122.8,0.76512]
[1763504747143,3.57616127,3123.0,3122.9,0.76512]
[1763504747343,4.35012474,3123.0,3122.9,0.76512]
[1763504749351,4.8769374,3123.5,3123.4,0.51893]
[1763504749555,0.75272,3124.1,3124.0,0.90733]
[1763504749853,3.96049,3124.3,3124.2,0.7649]
[1763504750043,1.68517105,3124.7,3124.3,0.76488]
[1763504750044,0.51877,3124.4,3124.3,0.76488]
[1763504750248,0.75267,3124.4,3124.3,0.24985662]
[1763504750548,0.75267,3124.4,3124.3,0.76863662]
[1763504750755,0.51877,3124.4,3124.3,0.76863662]
[1763504751843,0.75267,3124.4,3124.3,0.76863662]
[1763504752038,0.75267,3124.4,3124.3,0.24985662]
[1763504754653,0.75267,3124.4,3124.3,2.02259499]
[1763504754654,0.51877,3124.4,3124.3,2.02259499]
[1763504754857,0.51875,3124.5,3124.4,0.51877]
[1763504755057,0.51877,3124.4,3124.3,0.24985662]
[1763504755752,0.75265,3124.6,3124.5,0.90725]
[1763504756452,0.75265,3124.6,3124.5,0.3885]
[1763504756953,0.75265,3124.6,3124.3,0.00375662]
[1763504756954,0.75267,3124.4,3124.3,0.24985662]
[1763504757658,0.75267,3124.4,3124.3,0.76863662]
[1763504759462,0.51877,3124.4,3124.3,0.76863662]
[1763504759860,0.76177,3124.4,3124.3,0.76863662]
[1763504761145,0.76177,3124.4,3124.3,0.24985662]
[1763504761353,0.76177,3124.4,3124.3,0.76863662]
[1763504766662,3.2078,3124.7,3124.6,0.75403]
[1763504766959,3.2078,3124.7,3124.6,2.03527765]
[1763504767754,3.2078,3125.2,3125.1,0.2353]
[1763504767956,3.4508,3125.2,3125.1,0.2353]
[1763504768362,0.51865,3125.1,3125.0,0.1485]
[1763504768570,0.76165,3125.1,3125.0,0.3838]
[1763504769061,0.76167,3125.0,3124.9,0.75398]
[1763504769965,0.51867,3125.0,3124.9,0.75398]
[1763504771364,0.76167,3125.0,3124.9,0.75398]
[1763504774865,0.51867,3125.0,3124.9,0.75398]
[1763504775065,0.76166,3125.1,3125.0,0.90245]
[1763504776467,0.51865,3125.1,3125.0,0.90245]
[1763504776873,0.76165,3125.1,3125.0,0.90245]
[1763504778372,0.243,3125.1,3125.0,0.90245]
[1763504778766,0.76165,3125.1,3125.0,0.90245]
[1763504779665,0.51865,3125.1,3125.0,0.90245]
[1763504780257,0.76165,3125.1,3125.0,0.90245]
[1763504780572,0.76165,3125.1,3125.0,0.51865]
[1763504783872,0.75748,3124.9,3124.8,3.2078]
[1763504784065,0.75757,3124.4,3124.3,3.43515662]
[1763504784267,0.75757,3124.4,3124.3,3.95393662]
[1763504784884,3.96537,3124.4,3124.3,0.00375662]
[1763504792891,4.73277381,3124.4,3124.3,0.00375662]
[1763504793087,0.75597,3123.8,3123.7,0.00480161]
[1763504793286,0.2371,3123.8,3123.7,0.00480161]
[1763504793486,0.75597,3123.8,3123.7,0.00480161]
[1763504793781,0.75597,3123.8,3123.7,0.23930161]
[1763504793985,0.75597,3123.8,3123.7,0.24215114]
[1763504794185,0.75967315,3123.8,3123.7,0.24215114]
[1763504794386,0.75967315,3123.8,3123.7,0.00765114]
[1763504796493,0.75608,3123.1,3123.0,0.90198]
[1763504797290,0.75608,3123.1,3123.0,0.51898]
[1763504797490,0.75606,3123.3,3123.2,0.75345]
[1763504797687,0.75606,3123.3,3123.2,0.51895]
[1763504799189,0.75608,3123.1,3123.0,0.66281739]
[1763504800186,0.75608,3123.1,3123.0,0.89731739]
[1763504804500,0.75608,3123.1,3123.0,0.00362739]
[1763504804704,0.75608,3123.1,3123.0,0.52262739]
[1763504807399,0.75608,3123.1,3123.0,0.89732739]
[1763504807702,3.2078,3123.5,3123.4,0.75343]
[1763504807907,2.991,3123.7,3123.6,0.7534]
[1763504808406,0.52257315,3123.8,3123.7,0.75338]
[1763504808806,0.00370315,3123.8,3123.7,0.75338]
[1763504809409,0.00370315,3123.8,3123.7,2.03462765]
[1763504809911,0.24080315,3123.8,3123.7,0.75338]
[1763504810306,0.24080315,3123.8,3123.5,0.1402]
[1763504810307,0.6123298,3123.9,3123.8,0.75337]
[1763504811307,0.61536166,3123.9,3123.8,0.75337]
[1763504815616,0.6713,3123.7,3123.6,0.2345]
[1763504816911,0.6713,3123.7,3123.6,0.7534]
[1763504818517,0.67418186,3123.9,3123.8,0.74997]
[1763504819309,0.52188186,3123.9,3123.8,0.74997]
[1763504819510,0.67418186,3123.9,3123.8,0.74997]
[1763504821302,0.52188186,3123.9,3123.8,0.74997]
[1763504821502,0.00303186,3123.9,3123.8,0.74997]
[1763504822517,0.00303186,3123.9,3123.8,3.95777]
[1763504825717,6.1988,3124.4,3124.2,0.7499]
[1763504825718,0.51878,3124.3,3124.2,0.7499]
[1763504827318,3.2078,3124.4,3124.3,0.74988]
[1763504828722,3.72657,3124.4,3124.3,0.74988]
[1763504829724,3.87887,3124.4,3124.3,0.74988]
[1763504831621,0.67107,3124.4,3124.3,0.74988]
[1763504833419,0.67107,3124.4,3124.3,0.2311]
[1763504834517,0.67112,3124.1,3124.0,0.1345]
[1763504835217,0.67112,3124.1,3124.0,0.3656]
[1763504835818,0.67112,3124.1,3124.0,0.88443]
[1763504836319,0.51889,3123.7,3123.6,0.51888]
[1763504836525,0.51889,3123.7,3123.6,0.74998]
[1763504837925,0.51885,3123.9,3123.8,0.74993]
[1763504838124,0.67115,3123.9,3123.8,0.74993]
[1763504838919,0.51885,3123.9,3123.8,0.74993]
[1763504839820,0.67115,3123.9,3123.8,0.2311]
[1763504840827,0.67115,3123.9,3123.8,0.74997]
[1763504842225,0.66875,3123.9,3123.8,0.74997]
[1763504842721,0.51645,3123.9,3123.8,0.74997]
[1763504843123,3.2078,3124.2,3124.0,0.66152]
[1763504843124,0.67112,3124.1,3124.0,0.66152]
[1763504843330,0.67112,3124.1,3124.0,0.88722]
[1763504846525,0.51874,3124.6,3124.5,0.66142]
[1763504846730,0.74884,3124.6,3124.5,2.14066566]
[1763504849033,0.74884,3124.6,3124.5,0.51875]
[1763504849435,0.76218,3124.4,3124.3,0.75118]
[1763504854443,0.2434,3124.4,3124.3,0.75118]
[1763504854642,0.76215,3124.6,3124.5,0.75114]
[1763504858545,0.76215,3124.5,3124.4,0.2324]
[1763504859747,0.76215,3124.5,3124.4,0.75117]
[1763504861343,0.76215,3124.5,3124.4,0.2324]
[1763504861543,0.76215,3124.5,3124.4,0.75117]
[1763504865343,0.76215,3124.5,3124.4,0.2324]
[1763504865548,0.76215,3124.5,3124.4,0.75117]
[1763504865944,0.76217,3124.4,3124.3,0.51878]
[1763504866949,0.76218,3124.3,3124.0,3.36170161]
[1763504867151,0.2434,3124.1,3124.0,3.44500161]
[1763504868466,0.76222,3124.1,3124.0,0.00480161]
[1763504870649,1.52673393,3124.1,3124.0,0.00480161]
[1763504871154,0.76222,3124.1,3124.0,0.00480161]
[1763504875351,2.991,3124.4,3124.3,0.2324]
[1763504875557,0.5188,3124.2,3124.1,0.51881]
[1763504875764,0.7622,3124.2,3124.1,0.75121]
[1763504882266,0.26404535,3125.4,3124.1,9.204]
[1763504882467,2.30040664,3127.0,3125.8,2.05756613]
[1763504882764,0.1428,3127.5,3126.9,3.2078]
[1763504882969,0.1428,3127.0,3126.9,3.204]
[1763504883165,1.4172308,3127.0,3126.9,1.00888895]
[1763504883368,0.1428,3127.0,3126.9,5.49838968]
[1763504883569,0.1428,3127.0,3126.9,5.898283]
[1763504884278,0.1428,3127.5,3127.0,0.51833]
[1763504884570,0.1428,3127.5,3126.9,5.898283]
[1763504884571,0.2397,3127.3,3127.2,1.28170073]
[1763504884776,0.2397,3127.3,3127.2,2.690483]
[1763504884968,1.2901308,3127.3,3127.2,1.40878227]
[1763504886367,1.2901308,3127.3,3127.2,3.09755336]
[1763504887375,0.1428,3127.5,3127.2,3.09755336]
[1763504887571,0.1428,3127.5,3127.4,3.2078]
[1763504887762,0.1428,3127.5,3127.4,4.61658227]
[1763504888164,0.1428,3127.5,3127.4,5.898283]
[1763504888677,0.1428,3127.5,3127.4,7.58705409]
[1763504891779,0.1428,3127.5,3127.4,5.898283]
[1763504892180,0.1428,3127.5,3127.4,7.57852252]
[1763504892378,0.1428,3127.5,3127.4,5.898283]
[1763504893977,0.66098,3128.0,3127.4,5.898283]
[1763504894177,0.3668,3128.0,3127.9,1.28170073]
[1763504894475,2.1751008,3128.0,3127.9,2.690483]
[1763504894776,0.66097,3128.0,3127.9,2.690483]
[1763504894972,0.66097,3128.0,3127.9,3.208673]
[1763504895173,0.1428,3128.0,3127.9,3.208673]
[1763504896181,0.66097,3128.0,3127.9,3.208673]
[1763504898181,0.5181,3128.4,3127.9,2.690483]
[1763504898382,0.75782,3128.3,3128.2,0.51813]
[1763504898684,0.51812,3128.3,3128.2,1.93045346]
[1763504899580,0.51812,3128.3,3128.2,3.21215419]
[1763504899772,0.75782,3128.3,3128.2,6.41995419]
[1763504900280,0.51812,3128.3,3128.2,6.41995419]
[1763504902387,0.51811,3128.4,3128.3,0.51812]
[1763504902594,0.75781,3128.4,3128.3,1.92690227]
[1763504903689,0.75781,3128.4,3128.3,1.40878227]
[1763504903891,1.46381,3128.4,3128.3,1.40878227]
[1763504904093,2.5142408,3128.4,3128.3,1.40878227]
[1763504905393,2.5142408,3128.4,3128.3,3.08547836]
[1763504907095,2.5142408,3128.4,3128.3,1.40878227]
[1763504907395,2.5142408,3128.4,3128.3,3.668277]
[1763504908392,2.5142408,3128.4,3128.3,1.40878227]
[1763504909287,1.45259814,3128.4,3128.3,1.40878227]
[1763504909487,1.97070814,3128.4,3128.3,3.65697621]
[1763504909792,0.6659,3127.9,3127.8,3.21260161]
[1763504909992,0.98622637,3127.9,3127.8,3.21260161]
[1763504910390,1.50441637,3127.9,3127.8,3.21260161]
[1763504910790,1.5072315,3127.9,3127.8,3.21654526]
[1763504912181,1.19528695,3127.9,3127.8,3.21654526]
[1763504912498,0.6659,3127.9,3127.8,3.21654526]
[1763504912693,1.18409,3127.9,3127.8,3.21654526]
[1763504913398,1.18409,3127.9,3127.8,6.04670086]
[1763504915400,1.18409,3127.9,3127.8,3.21654526]
[1763504915998,1.18409,3127.9,3127.8,0.00874526]
[1763504919497,1.18409,3127.9,3127.8,2.83890086]
[1763504919902,3.2078,3128.2,3127.8,2.83890086]
[1763504920102,0.6659,3127.9,3127.8,2.83890086]
[1763504920302,1.18409,3127.9,3127.8,2.83890086]
[1763504920503,1.18409,3127.9,3127.8,0.00874526]
[1763504921605,1.18409,3127.9,3127.8,1.23233745]
[1763504922298,0.87212941,3127.9,3127.8,1.23233745]
[1763504922703,0.87212941,3127.9,3127.8,0.84700394]
[1763504924206,3.2078,3128.2,3127.8,0.84700394]
[1763504924402,0.51815,3128.1,3128.0,2.26551848]
[1763504924606,1.18405,3128.1,3128.0,3.10377716]
[1763504925506,1.18405,3128.1,3128.0,0.83825868]
[1763504928910,1.61525,3127.5,3127.4,2.26551848]
[1763504929108,1.18417,3127.4,3127.3,2.26551848]
[1763504929301,7.52317,3127.4,3127.3,2.26551848]
[1763504929904,7.52593218,3127.4,3127.3,2.2692546]
[1763504930210,7.52593218,3127.4,3127.3,0.00373612]
[1763504931509,1.18693218,3127.4,3127.3,0.00373612]
[1763504931711,0.52103218,3127.4,3127.3,4.24145533]
[1763504932314,0.52103218,3127.4,3127.3,1.97593685]
[1763504932811,1.18693218,3127.4,3127.3,1.97593685]
[1763504938813,1.18693218,3127.4,3127.3,1.94461493]
[1763504939413,1.18693218,3127.4,3127.3,2.46290493]
[1763504939712,1.18693218,3127.4,3127.3,1.94461493]
[1763504941316,0.52103218,3127.4,3127.3,1.94461493]
[1763504941615,1.37113218,3127.4,3127.3,1.94461493]
[1763504943315,0.00276218,3127.4,3127.3,3.71328374]
[1763504943617,0.52103218,3127.4,3127.3,2.46290493]
[1763504944714,0.52103218,3127.4,3127.3,3.71328374]
[1763504945914,0.52103218,3127.4,3127.3,2.46290493]
[1763504946119,0.52103218,3127.4,3127.3,1.94461493]
[1763504950324,1.37113218,3127.4,3127.3,1.94461493]
[1763504950822,0.52103218,3127.4,3127.3,1.94461493]
[1763504959329,1.37113218,3127.4,3127.3,0.00373612]
[1763504960032,1.37113218,3127.4,3127.3,0.81283612]
[1763504966143,1.37113218,3127.4,3127.3,2.5151183]
[1763504967145,1.37113218,3127.4,3127.3,1.7060183]
[1763504968043,1.37113218,3127.4,3127.3,2.4362183]
[1763504968445,1.37113218,3127.4,3127.3,1.7060183]
[1763504968641,1.37113218,3127.4,3127.3,0.00373612]
[1763504970045,4.57893218,3127.4,3127.3,0.00373612]
[1763504971941,11.48383218,3127.4,3127.3,0.77353612]
[1763504972347,12.18233218,3127.4,3127.3,0.77353612]
[1763504975348,12.18233218,3127.4,3127.3,1.90792536]
[1763504977051,12.18233218,3127.4,3127.3,1.13812536]
[1763504978145,12.18233218,3127.4,3127.3,0.00373612]
[1763504979347,4.42733218,3127.4,3127.3,0.00373612]
[1763504979547,0.52103218,3127.4,3127.3,0.77353612]
[1763504979751,1.21953218,3127.4,3127.3,0.77353612]
[1763504980247,1.21953218,3127.4,3127.3,0.00373612]
[1763504989251,1.21953218,3127.4,3127.3,1.70479041]
[1763504991547,1.21953218,3127.4,3127.3,0.00373612]
[1763504993059,4.42733218,3127.4,3127.3,0.00373612]
[1763504994854,12.17633218,3127.4,3127.3,0.00373612]
[1763505001051,4.42733218,3127.4,3127.3,0.67263612]
[1763505001256,11.61406218,3127.4,3127.3,0.67263612]
[1763505001562,11.61406218,3127.4,3127.3,0.00373612]
[1763505001951,12.13233218,3127.4,3127.3,0.00373612]
[1763505002861,12.06653218,3127.4,3127.3,0.67263612]
[1763505003370,12.06653218,3127.4,3127.3,0.00373612]
[1763505004866,0.51832,3127.1,3127.0,0.4116]
[1763505005264,0.51832,3127.1,3127.0,1.93106535]
[1763505005866,3.21056218,3127.4,3127.3,0.6689]
[1763505006164,10.95756218,3127.4,3127.3,0.6689]
[1763505006568,0.52103218,3127.4,3127.3,0.6689]
[1763505007970,0.52103218,3127.4,3127.3,1.18719]
[1763505008368,0.52103218,3127.4,3127.3,0.6689]
[1763505008668,8.26903218,3127.4,3127.3,1.18719]
[1763505009367,8.26903218,3127.4,3127.3,0.6689]
[1763505010472,8.26903218,3127.4,3127.3,1.18719]
[1763505011174,8.26903218,3127.4,3127.3,0.6689]
[1763505014274,0.51832,3127.1,3127.0,1.08353181]
[1763505015472,0.51832,3127.1,3127.0,1.60186181]
[1763505016172,0.51832,3127.1,3127.0,1.08353181]
[1763505016381,0.51832,3127.1,3127.0,1.60186181]
[1763505018977,0.51832,3127.1,3127.0,1.08353181]
[1763505019376,0.51832,3127.1,3127.0,0.41463181]
[1763505020077,0.51832,3127.1,3127.0,1.08353181]
[1763505024483,0.5184,3126.6,3126.5,0.2155]
[1763505024685,0.51843,3126.4,3126.3,0.6421]
[1763505024985,0.51843,3126.4,3126.3,2.34059175]
[1763505025184,0.51843,3126.4,3126.3,0.6421]
[1763505025584,0.51843,3126.4,3126.3,0.64498623]
[1763505027278,0.51843,3126.4,3126.3,1.77591283]
[1763505029491,0.51843,3126.4,3126.3,0.64498623]
[1763505030392,0.51843,3126.4,3125.6,0.84815774]
[1763505030393,0.51855,3125.7,3125.6,0.84815774]
[1763505030785,0.5186,3125.4,3125.3,0.02924834]
[1763505030990,0.51865,3125.1,3125.0,0.3934]
[1763505031190,0.52246881,3125.1,3125.0,0.39585025]
[1763505031893,0.52246881,3125.1,3125.0,0.00245025]
[1763505032601,0.5187,3124.8,3124.7,0.00480161]
[1763505033298,0.51873,3124.6,3124.5,1.0544]
[1763505033498,0.51873,3124.6,3124.5,0.3934]
[1763505033806,0.51873,3124.6,3124.5,0.39670553]
[1763505037703,8.26273,3124.6,3124.5,0.39670553]
[1763505038299,0.51873,3124.6,3124.5,0.39670553]
[1763505038505,8.26273,3124.6,3124.5,0.39670553]
[1763505040608,0.51873,3124.6,3124.5,0.39670553]
[1763505041211,2.87273,3124.6,3124.5,0.39670553]
[1763505048825,2.87273,3124.6,3124.5,0.00330553]
[1763505049020,0.51878,3124.3,3124.2,0.00480161]
[1763505050130,0.51878,3124.3,3124.2,0.00711596]
[1763505058330,0.51878,3124.3,3124.2,0.59011596]
[1763505058530,8.26578,3124.3,3124.2,0.59011596]
[1763505059826,0.51878,3124.3,3124.2,0.59011596]
[1763505060329,0.51878,3124.3,3124.2,1.72555931]
[1763505062227,0.51878,3124.3,3124.2,0.59011596]
[1763505067343,8.26578,3124.3,3124.2,0.59011596]
[1763505071742,0.51878,3124.3,3124.2,0.59011596]
[1763505071936,8.26578,3124.3,3124.2,0.59011596]
[1763505079439,0.51878,3124.3,3124.2,0.59011596]
[1763505079635,8.26578,3124.3,3124.2,0.59011596]
[1763505088554,0.51878,3124.3,3124.2,0.59011596]
[1763505088857,8.26478,3124.3,3124.2,0.59011596]
[1763505093159,8.26478,3124.3,3124.2,0.00711596]
[1763505094655,0.51878,3124.3,3124.2,0.00711596]
[1763505094858,8.26478,3124.3,3124.2,0.00711596]
[1763505095252,3.72653,3124.6,3124.5,0.9002]
[1763505095446,11.47253,3124.6,3124.5,0.9002]
[1763505096854,3.72653,3124.6,3124.5,0.9002]
[1763505098263,3.72653,3124.6,3124.5,2.0376695]
[1763505100864,0.51873,3124.6,3124.5,2.0376695]
[1763505102270,0.51873,3124.6,3124.5,1.4714695]
[1763505102564,8.26373,3124.6,3124.5,1.4714695]
[1763505109277,8.26373,3124.6,3124.5,0.334]
[1763505110471,8.26373,3124.6,3124.3,1.1374695]
[1763505110472,0.51877,3124.4,3124.3,1.1374695]
[1763505111874,0.51878,3124.3,3124.2,1.14458546]
[1763505114785,0.51878,3124.3,3124.2,0.57331596]
[1763505115177,4.49378,3124.3,3124.2,0.57331596]
[1763505116384,8.26378,3124.3,3124.2,0.57331596]
[1763505118179,0.51878,3124.3,3124.2,0.57331596]
[1763505118385,0.51873,3124.6,3124.5,0.7973]
[1763505118591,0.51873,3124.6,3124.5,6.965301]
[1763505118883,0.51873,3124.6,3124.5,7.484051]
[1763505119287,0.51873,3124.6,3124.5,3.757501]
[1763505119481,0.51873,3124.6,3124.5,5.25817004]
[1763505120877,0.51873,3124.6,3124.5,4.0051]
[1763505121483,0.51873,3124.6,3124.5,3.5085]
[1763505121787,0.51873,3124.6,3124.5,0.85225485]
[1763505121992,0.51875,3124.5,3124.4,0.85225485]
[1763505123694,6.05575,3124.5,3124.4,0.85225485]
[1763505127198,6.05575,3124.5,3124.4,1.34885485]
[1763505127394,0.51875,3124.5,3124.4,0.4966]
[1763505127694,8.26275,3124.5,3124.4,0.4966]
[1763505130200,3.21161881,3125.1,3125.0,0.3007]
[1763505130201,3.73026881,3125.1,3125.0,0.3007]
[1763505130401,11.47426881,3125.1,3125.0,0.3007]
[1763505130594,12.75551968,3125.1,3125.0,0.3007]
[1763505131190,5.01151968,3125.1,3125.0,0.3007]
[1763505131395,10.59626881,3125.1,3125.0,0.3007]
[1763505132499,11.47426881,3125.1,3125.0,0.7973]
[1763505133504,11.47426881,3125.1,3125.0,1.15246738]
[1763505134397,0.51868,3124.9,3124.8,0.85176738]
[1763505136903,8.26168,3124.9,3124.8,0.85176738]
[1763505139008,0.5187,3124.8,3124.7,0.85176738]
[1763505140695,0.51873,3124.7,3124.6,0.4966]
[1763505140895,0.51873,3124.6,3124.5,0.3007]
[1763505141505,0.51873,3124.6,3124.5,0.7562]
[1763505141705,0.51873,3124.6,3124.5,1.60712684]
[1763505141895,6.05173,3124.6,3124.5,0.7562]
[1763505142292,6.05173,3124.6,3124.5,1.60712684]
[1763505142898,8.26173,3124.6,3124.5,0.7562]
[1763505145608,0.00381881,3125.1,3125.0,0.7227]
[1763505145609,3.73026881,3125.1,3125.0,0.7227]
[1763505145795,11.47326881,3125.1,3125.0,0.7227]
[1763505145995,0.52246881,3125.1,3125.0,5.0652894]
[1763505146204,0.00381881,3125.1,3125.0,4.44917]
[1763505146505,1.881e-05,3125.1,3125.0,6.15630096]
[1763505147109,1.881e-05,3125.1,3125.0,4.44917]
[1763505148220,1.881e-05,3125.1,3125.0,6.14818278]
[1763505148402,0.51866881,3125.1,3125.0,6.14818278]
[1763505149013,0.51866881,3125.1,3125.0,5.69268278]
[1763505149304,0.51866881,3125.1,3125.0,6.14218278]
[1763505149505,0.00480161,3125.4,3125.0,6.14218278]
[1763505149506,3.2078,3125.9,3125.8,0.4495]
[1763505149805,3.72632,3125.9,3125.8,0.4495]
[1763505150606,3.72924135,3125.9,3125.8,0.4495]
[1763505152509,3.72684135,3125.9,3125.8,0.4495]
[1763505155410,0.52144135,3125.9,3125.8,0.4495]
[1763505158516,4.49197222,3125.9,3125.3,0.34186825]
[1763505158809,0.51863,3125.2,3125.1,0.4495]
[1763505161507,0.51865,3125.1,3125.0,0.2672]
[1763505164515,0.51865,3125.1,3124.8,0.00480161]
[1763505164516,0.51868,3124.9,3124.8,0.00480161]
[1763505167119,5.94368,3124.9,3124.8,0.00480161]
[1763505168520,8.25868,3124.9,3124.8,0.00480161]
[1763505168917,0.51868,3124.9,3124.8,0.00480161]
[1763505170822,0.51868,3124.9,3124.8,0.45430161]
[1763505182426,0.51868,3124.9,3124.8,0.00480161]
[1763505183027,3.72648,3124.9,3124.8,0.00480161]
[1763505183933,9.17348,3124.9,3124.8,0.43010161]
[1763505184530,9.17348,3124.9,3124.8,0.00480161]
[1763505186035,3.72648,3124.9,3124.8,0.43010161]
[1763505188237,3.72648,3124.9,3124.8,1.56225493]
[1763505190136,3.2078,3124.9,3124.8,1.56225493]
[1763505190935,3.72648,3124.9,3124.8,1.56225493]
[1763505191238,3.72648,3124.9,3124.8,0.43010161]
[1763505193240,0.51868,3124.9,3124.8,0.43010161]
[1763505194636,0.51868,3124.9,3124.8,2.12833159]
[1763505197044,3.72642,3125.3,3125.2,0.4253]
[1763505197742,3.72642,3125.3,3125.2,1.55789049]
[1763505197941,3.2078,3125.3,3125.2,0.94393]
[1763505198139,0.5186,3125.4,3125.3,0.4253]
[1763505198542,0.51859,3125.5,3125.3,0.51862]